bitfinex-derivatives/quotes_BTCF0:USTF0_20250911
["timestamp","ask_amount","ask_price","bid_price","bid_amount"]
[1757598541526,0.92838834,114060.0,114050.0,0.89741066]
[1757598541722,0.92838834,114060.0,114050.0,0.8187128]
[1757598541923,0.07286834,114060.0,114050.0,0.8187128]
[1757598542123,0.85652,114060.0,114050.0,0.8187128]
[1757598542324,0.85652,114060.0,114050.0,0.89741066]
[1757598542528,0.85652,114060.0,114050.0,0.8187128]
[1757598542723,0.00104,114060.0,114050.0,0.89718908]
[1757598542931,0.85652,114060.0,114050.0,0.89718908]
[1757598543532,0.00104,114060.0,114050.0,0.89718908]
[1757598543833,0.00104,114060.0,114050.0,0.92867672]
[1757598544028,1.76764,114090.0,114050.0,1.30985702]
[1757598544224,1.78955,114090.0,114080.0,0.75699]
[1757598544625,2.64495,114090.0,114080.0,0.75699]
[1757598545029,2.65373429,114090.0,114080.0,0.9205128]
[1757598545224,2.83119709,114090.0,114080.0,0.7216]
[1757598545637,2.91767429,114090.0,114080.0,0.74428]
[1757598545932,3.08119709,114090.0,114080.0,0.74428]
[1757598546133,2.65373429,114090.0,114080.0,0.75699]
[1757598546324,1.78955,114090.0,114080.0,0.75699]
[1757598546524,2.64487,114090.0,114080.0,0.75699]
[1757598546932,2.8083928,114090.0,114080.0,0.75699]
[1757598547236,2.8083928,114090.0,114080.0,0.75799]
[1757598547437,3.14281738,114090.0,114080.0,0.3618]
[1757598547636,3.30634018,114090.0,114080.0,0.003]
[1757598547837,3.31545425,114090.0,114080.0,0.003]
[1757598548736,2.98840865,114090.0,114080.0,0.003]
[1757598548937,3.31545425,114090.0,114080.0,0.003]
[1757598549332,2.29661145,114090.0,114080.0,0.003]
[1757598549532,3.15177145,114090.0,114080.0,0.003]
[1757598549730,2.03267145,114090.0,114080.0,0.39919]
[1757598550127,1.86914865,114090.0,114080.0,0.39919]
[1757598550328,2.90173145,114090.0,114080.0,0.39919]
[1757598550729,2.90177145,114090.0,114080.0,0.39919]
[1757598551231,2.90177145,114090.0,114080.0,0.003]
[1757598551544,3.06529425,114090.0,114080.0,0.003]
[1757598552439,2.73812865,114090.0,114080.0,0.3638]
[1757598552648,3.06517425,114090.0,114080.0,0.003]
[1757598552840,3.31517425,114090.0,114080.0,0.003]
[1757598553041,2.98812865,114090.0,114080.0,0.003]
[1757598553533,2.46017425,114090.0,114080.0,0.003]
[1757598553738,3.31513425,114090.0,114080.0,0.003]
[1757598554240,3.67593425,114090.0,114080.0,0.003]
[1757598555140,2.46017425,114090.0,114080.0,0.3638]
[1757598555340,2.98800865,114090.0,114080.0,0.3638]
[1757598555640,2.88759145,114090.0,114080.0,0.39919]
[1757598556035,2.73800865,114090.0,114080.0,0.38648]
[1757598556237,3.06505425,114090.0,114080.0,0.3638]
[1757598556943,3.06501425,114090.0,114080.0,0.3638]
[1757598557445,2.73796865,114090.0,114080.0,0.3638]
[1757598557645,3.06497425,114090.0,114080.0,0.3638]
[1757598559749,3.06489425,114090.0,114080.0,0.3638]
[1757598560143,2.90137145,114090.0,114080.0,0.38648]
[1757598560646,2.04665145,114090.0,114080.0,0.38648]
[1757598560839,2.90129145,114090.0,114080.0,0.38648]
[1757598561043,2.04665145,114090.0,114080.0,0.39919]
[1757598561245,2.88735145,114090.0,114080.0,0.39919]
[1757598561848,2.72382865,114090.0,114080.0,0.39919]
[1757598562145,2.72378865,114090.0,114080.0,0.72765996]
[1757598562341,2.90009145,114090.0,114080.0,0.72765996]
[1757598562547,2.90009145,114090.0,114080.0,0.63648]
[1757598562741,2.88731145,114090.0,114080.0,0.72814996]
[1757598563150,2.88731145,114090.0,114080.0,0.64968]
[1757598563356,2.03271145,114090.0,114080.0,0.39968]
[1757598563547,2.72374865,114090.0,114080.0,0.39968]
[1757598563747,2.03271145,114090.0,114080.0,0.39968]
[1757598563947,2.88727145,114090.0,114080.0,0.39968]
[1757598564554,3.06357425,114090.0,114080.0,0.3638]
[1757598564756,2.90005145,114090.0,114080.0,0.38532]
[1757598564953,2.88727145,114090.0,114080.0,0.39852]
[1757598565351,2.72366865,114090.0,114080.0,0.5620428]
[1757598565548,2.72362865,114090.0,114080.0,0.39852]
[1757598566154,2.72362865,114090.0,114080.0,0.64852]
[1757598566861,2.88715145,114090.0,114080.0,0.64852]
[1757598567251,1.86918865,114090.0,114080.0,0.8120428]
[1757598567450,2.72354865,114090.0,114080.0,0.89051276]
[1757598567653,2.72354865,114090.0,114080.0,0.72698996]
[1757598568160,2.88707145,114090.0,114080.0,0.64852]
[1757598568654,2.88707145,114090.0,114080.0,0.72696503]
[1757598569253,2.88707145,114090.0,114080.0,0.64852]
[1757598569654,2.72354865,114090.0,114080.0,0.64852]
[1757598569961,2.88707145,114090.0,114080.0,0.64852]
[1757598570154,1.11943145,114090.0,114080.0,0.64852]
[1757598570457,0.95590865,114090.0,114080.0,0.64852]
[1757598570657,1.11943145,114090.0,114080.0,0.64852]
[1757598571050,0.95590865,114090.0,114080.0,0.64852]
[1757598571255,1.11943145,114090.0,114080.0,0.64852]
[1757598572458,0.95590865,114090.0,114080.0,0.64852]
[1757598573260,0.09243458,114090.0,114080.0,0.8120428]
[1757598573459,0.94647458,114090.0,114080.0,0.8120428]
[1757598573652,0.94647458,114090.0,114080.0,0.89052152]
[1757598574461,0.95539035,114090.0,114080.0,0.72699872]
[1757598574757,1.11891315,114090.0,114080.0,0.72699872]
[1757598575657,1.54521595,114090.0,114080.0,0.44227872]
[1757598576160,1.13169315,114090.0,114080.0,0.3638]
[1757598576356,0.27765315,114090.0,114080.0,0.38532]
[1757598576660,1.11875315,114090.0,114080.0,0.39852]
[1757598577454,0.95523035,114090.0,114080.0,0.39852]
[1757598577661,0.10135035,114090.0,114080.0,0.39852]
[1757598577862,0.93324035,114090.0,114080.0,0.5620428]
[1757598578060,0.95533035,114090.0,114080.0,0.39852]
[1757598578358,1.13163315,114090.0,114080.0,0.39852]
[1757598578754,1.13163315,114090.0,114080.0,0.46379872]
[1757598579155,1.13163315,114090.0,114080.0,0.47699872]
[1757598579656,0.96811035,114090.0,114080.0,0.47699872]
[1757598579958,1.13163315,114090.0,114080.0,0.47699872]
[1757598580159,1.13163315,114090.0,114080.0,0.38532]
[1757598580464,1.13163315,114090.0,114080.0,0.3638]
[1757598581063,1.29515595,114090.0,114080.0,0.3638]
[1757598581264,1.54515595,114090.0,114080.0,0.3638]
[1757598581760,1.54515595,114090.0,114080.0,0.08147872]
[1757598581965,1.54515595,114090.0,114080.0,0.003]
[1757598582460,1.90595595,114090.0,114080.0,0.003]
[1757598582664,0.03459,114080.0,114060.0,0.18844264]
[1757598582861,1.0480828,114070.0,114050.0,0.43927872]
[1757598583057,1.0480828,114070.0,114050.0,0.3608]
[1757598583058,0.3619156,114060.0,114050.0,0.3608]
[1757598583258,2.1297156,114060.0,114050.0,0.3608]
[1757598583869,2.9832356,114060.0,114050.0,0.3608]
[1757598584660,3.2332356,114060.0,114050.0,0.3608]
[1757598584866,0.03487,114050.0,114030.0,0.43927872]
[1757598585057,1.0515928,114040.0,114030.0,0.43927872]
[1757598585453,1.0515928,114040.0,114030.0,0.3608]
[1757598585665,1.0515928,114040.0,114030.0,0.38232]
[1757598585866,1.06073421,114040.0,114030.0,0.38232]
[1757598586353,1.06073421,114040.0,114030.0,0.38732]
[1757598586558,1.06173421,114040.0,114030.0,0.39232]
[1757598586860,0.20825421,114040.0,114030.0,0.3708]
[1757598587067,0.20825421,114040.0,114030.0,0.44927872]
[1757598587268,1.06165421,114040.0,114030.0,0.3708]
[1757598587664,0.20825421,114040.0,114030.0,0.3708]
[1757598587866,1.06161421,114040.0,114030.0,0.3708]
[1757598588768,1.06161421,114040.0,114030.0,0.01]
[1757598588769,0.89809141,114040.0,114030.0,0.01]
[1757598589160,1.06161421,114040.0,114030.0,0.01]
[1757598589561,1.06161421,114040.0,114030.0,0.3708]
[1757598589962,1.06161421,114040.0,114030.0,0.01]
[1757598590472,1.22513701,114040.0,114030.0,0.01]
[1757598591767,1.58593701,114040.0,114030.0,0.01]
[1757598592070,1.83593701,114040.0,114030.0,0.01]
[1757598592465,1.83581701,114040.0,114030.0,0.01]
[1757598593665,1.83581701,114040.0,114030.0,0.009]
[1757598594068,0.98257701,114040.0,114030.0,0.009]
[1757598594266,1.47497701,114040.0,114030.0,0.009]
[1757598594661,1.47497701,114040.0,114030.0,0.007]
[1757598595166,0.62177701,114040.0,114030.0,0.007]
[1757598595367,0.03223141,114040.0,114030.0,0.65362]
[1757598595764,0.88539141,114040.0,114030.0,0.65362]
[1757598596173,1.04891421,114040.0,114030.0,0.65362]
[1757598596664,0.88539141,114040.0,114030.0,0.65362]
[1757598596965,1.04891421,114040.0,114030.0,0.65362]
[1757598597766,1.06141421,114040.0,114030.0,0.65362]
[1757598598369,1.06038379,114040.0,114030.0,0.65362]
[1757598599468,0.19472379,114040.0,114030.0,0.65362]
[1757598599668,0.03223141,114040.0,114030.0,0.65362]
[1757598599869,0.001,114040.0,114030.0,0.81611238]
[1757598600073,0.85396,114040.0,114030.0,0.81611238]
[1757598600272,0.001,114040.0,114030.0,0.81611238]
[1757598600573,0.001,114040.0,114030.0,1.45378528]
[1757598600769,0.08330458,114090.0,114040.0,0.1234852]
[1757598600975,0.25541696,114090.0,114080.0,0.03582]
[1757598601171,1.06939834,114090.0,114080.0,0.03582]
[1757598601364,1.08317834,114090.0,114080.0,0.3608]
[1757598601568,1.08317834,114090.0,114070.0,0.3608]
[1757598601771,0.18489238,114080.0,114070.0,0.38391]
[1757598602476,0.19739238,114080.0,114070.0,0.38391]
[1757598602678,0.19739238,114080.0,114070.0,0.3608]
[1757598602969,0.19739238,114080.0,114070.0,0.38391]
[1757598603174,0.18489238,114080.0,114070.0,0.39662]
[1757598603872,0.0224,114080.0,114070.0,0.39662]
[1757598604075,0.87516,114080.0,114070.0,0.39662]
[1757598604378,0.87516,114080.0,114070.0,0.64662]
[1757598604572,0.87616,114080.0,114070.0,0.64662]
[1757598605074,0.87604,114080.0,114070.0,0.64662]
[1757598605273,0.87504,114080.0,114070.0,0.64662]
[1757598605469,0.10182596,114090.0,114080.0,0.03582]
[1757598605669,0.95438596,114090.0,114080.0,0.39662]
[1757598607675,0.95438596,114090.0,114080.0,0.39762]
[1757598608078,0.10182596,114090.0,114080.0,0.39762]
[1757598608277,0.95522596,114090.0,114080.0,0.39762]
[1757598608876,1.11771834,114090.0,114080.0,0.39762]
[1757598609378,1.11771834,114090.0,114080.0,0.38491]
[1757598609379,1.13149834,114090.0,114080.0,0.38491]
[1757598609774,1.11771834,114090.0,114080.0,0.39762]
[1757598610478,1.38149834,114090.0,114080.0,0.001]
[1757598610780,1.74229834,114090.0,114080.0,0.001]
[1757598611176,0.03346,114060.0,114050.0,0.39662]
[1757598611480,1.03701238,114060.0,114050.0,0.39662]
[1757598611874,0.18489238,114060.0,114050.0,0.39662]
[1757598612183,0.0224,114060.0,114050.0,0.39662]
[1757598612383,0.87448,114060.0,114050.0,0.39662]
[1757598612783,0.87448,114060.0,114050.0,0.39962]
[1757598613376,0.001,114060.0,114050.0,0.40362]
[1757598613581,0.85304,114060.0,114050.0,0.81611238]
[1757598613776,0.87544,114060.0,114050.0,0.65362]
[1757598614083,0.001,114060.0,114050.0,0.81611238]
[1757598614275,0.85296,114060.0,114050.0,0.81611238]
[1757598614475,0.001,114060.0,114050.0,0.81611238]
[1757598615072,0.001,114060.0,114050.0,0.65362]
[1757598615273,0.001,114060.0,114050.0,0.81611238]
[1757598615474,0.0234,114060.0,114050.0,0.40362]
[1757598615675,0.18589238,114060.0,114050.0,0.40362]
[1757598616470,0.19695238,114060.0,114050.0,0.3678]
[1757598616682,0.19695238,114060.0,114050.0,0.39091]
[1757598617183,0.18589238,114060.0,114050.0,0.40362]
[1757598617772,0.001,114060.0,114050.0,0.40362]
[1757598617979,0.001,114060.0,114050.0,0.65362]
[1757598618181,0.001,114060.0,114050.0,0.81611238]
[1757598618572,0.07942596,114090.0,114070.0,0.01271]
[1757598618573,0.11388596,114090.0,114070.0,0.01271]
[1757598618773,0.11388596,114090.0,114070.0,0.39662]
[1757598618774,1.03657238,114080.0,114070.0,0.39662]
[1757598619278,0.87408,114080.0,114070.0,0.39662]
[1757598619484,1.29763238,114080.0,114070.0,0.3608]
[1757598619981,1.29759238,114080.0,114070.0,0.3608]
[1757598620178,1.29759238,114080.0,114070.0,0.3618]
[1757598620969,1.29759238,114080.0,114060.0,0.37351]
[1757598621174,0.19867238,114070.0,114060.0,0.3608]
[1757598623284,0.44867238,114070.0,114060.0,0.002]
[1757598624088,0.44867238,114070.0,114050.0,0.3608]
[1757598624384,1.21216,114060.0,114040.0,0.3608]
[1757598624586,0.03246,114040.0,114030.0,0.38088875]
[1757598624892,0.88382,114040.0,114030.0,0.38088875]
[1757598625387,1.04631238,114040.0,114030.0,0.38088875]
[1757598625691,1.03521238,114040.0,114030.0,0.41625875]
[1757598626280,1.03521238,114040.0,114030.0,0.41925875]
[1757598627085,1.03621238,114040.0,114030.0,0.42225875]
[1757598629088,0.87372,114040.0,114030.0,0.42225875]
[1757598629584,1.03621238,114040.0,114030.0,0.42225875]
[1757598630288,1.03621238,114040.0,114030.0,0.38688875]
[1757598630289,1.04727238,114040.0,114030.0,0.38688875]
[1757598630489,1.29727238,114040.0,114030.0,0.38688875]
[1757598632390,1.29727238,114040.0,114030.0,0.006]
[1757598633789,1.65807238,114040.0,114030.0,0.006]
[1757598634394,0.44595238,114040.0,114030.0,0.006]
[1757598634588,1.03593238,114040.0,114030.0,0.40217]
[1757598634891,1.03589238,114040.0,114030.0,0.40217]
[1757598635285,0.0224,114040.0,114030.0,0.40217]
[1757598635487,0.8734,114040.0,114030.0,0.40217]
[1757598635790,1.03589238,114040.0,114030.0,0.40217]
[1757598636592,1.04695238,114040.0,114030.0,0.40217]
[1757598636890,1.04695238,114040.0,114030.0,0.38955]
[1757598637682,0.87336,114040.0,114030.0,0.40217]
[1757598637887,1.03585238,114040.0,114030.0,0.40217]
[1757598638997,1.04691238,114040.0,114030.0,0.3668]
[1757598640495,1.04671238,114040.0,114030.0,0.3668]
[1757598641095,1.04671238,114040.0,114030.0,0.006]
[1757598643391,0.19595238,114040.0,114030.0,0.02875]
[1757598643596,1.04663238,114040.0,114030.0,0.02875]
[1757598643795,1.04663238,114040.0,114030.0,0.006]
[1757598643999,1.04663238,114040.0,114030.0,0.02875]
[1757598644191,0.19595238,114040.0,114030.0,0.04137]
[1757598644397,1.04659238,114040.0,114030.0,0.04137]
[1757598644699,0.18489238,114040.0,114030.0,0.04137]
[1757598644890,0.18489238,114040.0,114030.0,0.40217]
[1757598644891,0.0224,114040.0,114030.0,0.40217]
[1757598645091,1.03545238,114040.0,114030.0,0.40217]
[1757598645398,0.87296,114040.0,114030.0,0.40217]
[1757598645599,1.03545238,114040.0,114030.0,0.40217]
[1757598645799,0.0224,114040.0,114030.0,0.65217]
[1757598646190,0.87288,114040.0,114030.0,0.65217]
[1757598647198,1.03537238,114040.0,114030.0,0.40217]
[1757598649406,0.001,114040.0,114030.0,0.81466238]
[1757598649698,0.8514,114040.0,114030.0,0.81466238]
[1757598650101,0.001,114040.0,114030.0,0.81466238]
[1757598650302,0.85128,114040.0,114030.0,0.9246263]
[1757598650694,0.06946353,114050.0,114040.0,0.01262]
[1757598650902,0.20166792,114080.0,114070.0,0.03537]
[1757598651097,0.91954792,114080.0,114060.0,0.37342]
[1757598651297,0.0214,114070.0,114060.0,0.39617]
[1757598651503,0.18389238,114070.0,114060.0,0.39617]
[1757598652203,0.0214,114070.0,114060.0,0.39617]
[1757598653202,0.87152,114070.0,114060.0,0.39617]
[1757598653400,0.18389238,114070.0,114060.0,0.39617]
[1757598653600,1.03393238,114070.0,114060.0,0.39617]
[1757598654396,0.18026792,114080.0,114060.0,0.75697]
[1757598654599,0.20323792,114080.0,114070.0,0.39642]
[1757598654801,1.05319792,114080.0,114070.0,0.39642]
[1757598655605,0.89062554,114080.0,114070.0,0.39642]
[1757598655806,1.05311792,114080.0,114070.0,0.39642]
[1757598656001,1.06523792,114080.0,114070.0,0.38349]
[1757598656199,0.89062554,114080.0,114070.0,0.39642]
[1757598656406,1.05311792,114080.0,114070.0,0.39642]
[1757598656799,1.05411792,114080.0,114070.0,0.39642]
[1757598657204,1.05411792,114080.0,114070.0,0.39742]
[1757598658506,1.05510735,114080.0,114070.0,0.39742]
[1757598659012,0.89162554,114080.0,114070.0,0.39742]
[1757598659206,1.05510735,114080.0,114070.0,0.39742]
[1757598660407,1.05510735,114080.0,114070.0,0.81090181]
[1757598660408,0.01877554,114080.0,114070.0,0.81090181]
[1757598660601,0.85056,114080.0,114070.0,0.81090181]
[1757598660801,0.85056,114080.0,114070.0,0.88937115]
[1757598661200,0.001,114080.0,114070.0,1.03854351]
[1757598661407,0.04236,114090.0,114080.0,0.03562]
[1757598661706,4e-05,114090.0,114080.0,0.97338362]
[1757598662103,0.00877045,114110.0,114080.0,0.97338362]
[1757598662302,2.00964907,114130.0,114120.0,0.01293]
[1757598662609,2.60513907,114130.0,114120.0,0.3608]
[1757598662911,2.60513907,114130.0,114120.0,0.3598]
[1757598663608,2.61013907,114130.0,114120.0,0.39542]
[1757598663812,1.86507726,114130.0,114120.0,0.39542]
[1757598664105,2.69142726,114130.0,114120.0,0.91970181]
[1757598664313,2.69142726,114130.0,114120.0,0.91870181]
[1757598664501,2.88677846,114130.0,114120.0,0.75522]
[1757598664705,2.72329665,114130.0,114120.0,0.75522]
[1757598665208,2.72529665,114130.0,114120.0,0.75522]
[1757598666011,2.69022726,114130.0,114120.0,0.75522]
[1757598666407,2.69022726,114130.0,114120.0,0.91870181]
[1757598666918,2.71319726,114130.0,114120.0,0.75522]
[1757598667105,2.87667907,114130.0,114120.0,0.75522]
[1757598667708,2.71319726,114130.0,114120.0,0.75522]
[1757598668009,2.87667907,114130.0,114120.0,0.75522]
[1757598668506,2.71319726,114130.0,114120.0,0.75522]
[1757598668711,2.87667907,114130.0,114120.0,0.75522]
[1757598669108,2.71319726,114130.0,114120.0,0.75522]
[1757598669311,2.87667907,114130.0,114120.0,0.75522]
[1757598669809,2.71319726,114130.0,114120.0,0.75522]
[1757598670110,1.84110726,114130.0,114120.0,0.75522]
[1757598670315,2.68994726,114130.0,114120.0,0.75522]
[1757598670513,1.84110726,114130.0,114120.0,0.91870181]
[1757598671118,2.68978726,114130.0,114120.0,0.91870181]
[1757598671417,2.68978726,114130.0,114120.0,0.75522]
[1757598671607,2.68978726,114130.0,114120.0,0.91870181]
[1757598671802,2.71275726,114130.0,114120.0,0.75522]
[1757598672209,2.87623907,114130.0,114120.0,0.75522]
[1757598673009,2.71267726,114130.0,114120.0,0.75522]
[1757598673516,1.84110726,114130.0,114120.0,0.91870181]
[1757598673708,2.68958726,114130.0,114120.0,0.91870181]
[1757598674111,1.84110726,114130.0,114120.0,0.75522]
[1757598674304,0.07286726,114130.0,114120.0,1.33218362]
[1757598674506,0.22048,114130.0,114120.0,1.33218362]
[1757598674711,0.00404,114130.0,114120.0,1.33218362]
[1757598674910,0.00404,114130.0,114120.0,1.00522]
[1757598675118,0.00404,114130.0,114120.0,1.33218362]
[1757598675414,0.00404,114130.0,114120.0,1.16870181]
[1757598676111,0.00404,114130.0,114120.0,1.00522]
[1757598676311,0.00404,114130.0,114120.0,1.16870181]
[1757598677707,0.00404,114130.0,114120.0,1.33218362]
[1757598677912,0.00404,114130.0,114120.0,1.41978702]
[1757598678113,0.00404,114130.0,114120.0,1.33218362]
[1757598679616,0.00404,114130.0,114120.0,1.35222367]
[1757598679913,0.00404,114130.0,114120.0,1.02526005]
[1757598680116,0.00404,114130.0,114120.0,1.18874186]
[1757598680512,0.00404,114130.0,114120.0,1.35222367]
[1757598680910,0.00404,114130.0,114120.0,1.02526005]
[1757598681115,0.00404,114130.0,114120.0,1.35222367]
[1757598681314,0.00404,114130.0,114120.0,1.02526005]
[1757598681515,0.00404,114130.0,114120.0,1.36116366]
[1757598682214,0.00404,114130.0,114120.0,1.4233803]
[1757598682920,0.00404,114130.0,114120.0,1.36116366]
[1757598683315,0.00404,114130.0,114120.0,1.4233803]
[1757598683914,0.00404,114130.0,114120.0,1.41444031]
[1757598684811,0.00404,114130.0,114120.0,1.42345306]
[1757598685007,0.00404,114130.0,114120.0,1.41444031]
[1757598685407,0.00404,114130.0,114120.0,1.0009585]
[1757598685612,0.00404,114130.0,114120.0,0.83747669]
[1757598685821,0.02614,114130.0,114120.0,1.0009585]
[1757598686316,0.00404,114130.0,114120.0,1.0009585]
[1757598686715,0.00404,114130.0,114120.0,0.93874186]
[1757598687217,0.00404,114130.0,114120.0,1.10222367]
[1757598688320,0.00404,114130.0,114120.0,1.16444031]
[1757598688722,0.00404,114130.0,114120.0,1.0009585]
[1757598688917,0.00404,114130.0,114120.0,1.16444031]
[1757598690020,0.06973478,114150.0,114120.0,1.25204391]
[1757598690318,2.56182,114170.0,114160.0,0.01375]
[1757598690523,2.56182,114170.0,114160.0,0.56013181]
[1757598690914,2.63177885,114170.0,114160.0,0.56013181]
[1757598691322,2.79526066,114170.0,114160.0,0.39665]
[1757598691518,2.80407259,114170.0,114160.0,0.39665]
[1757598691918,2.80407259,114170.0,114160.0,0.39365]
[1757598692123,2.03175259,114170.0,114160.0,0.39365]
[1757598692321,2.03175259,114170.0,114160.0,0.91793181]
[1757598692322,1.84617078,114170.0,114160.0,0.91793181]
[1757598692520,4e-05,114190.0,114180.0,0.01375]
[1757598692716,0.02214,114190.0,114180.0,0.91993181]
[1757598693116,0.03611,114190.0,114180.0,0.39465]
[1757598693723,0.04691064,114190.0,114180.0,0.39465]
[1757598693927,0.03294064,114190.0,114180.0,0.55813181]
[1757598694224,0.87138,114190.0,114180.0,0.91893181]
[1757598694528,0.94058428,114190.0,114180.0,0.91893181]
[1757598694720,0.94058428,114190.0,114180.0,0.75545]
[1757598694917,1.37679852,114190.0,114180.0,0.7216]
[1757598695123,0.03426,114180.0,114170.0,0.3608]
[1757598695426,0.19774181,114180.0,114170.0,0.3608]
[1757598696218,0.61122362,114180.0,114170.0,0.3608]
[1757598696420,0.03607,114170.0,114160.0,0.02002425]
[1757598696620,1.04663181,114170.0,114160.0,0.02002425]
[1757598696817,1.29663181,114170.0,114160.0,0.02002425]
[1757598697015,1.29663181,114170.0,114160.0,0.38082425]
[1757598698123,1.29659181,114170.0,114160.0,0.40292425]
[1757598698725,1.13311,114170.0,114160.0,0.40292425]
[1757598698920,1.29659181,114170.0,114160.0,0.40292425]
[1757598699530,1.29659181,114170.0,114160.0,0.38082425]
[1757598699531,1.04659181,114170.0,114160.0,0.38082425]
[1757598699724,1.04647181,114170.0,114160.0,0.40292425]
[1757598700129,1.04647181,114170.0,114160.0,0.40792425]
[1757598700329,1.04643181,114170.0,114160.0,0.40792425]
[1757598700827,0.19955181,114170.0,114160.0,0.42167425]
[1757598701031,0.0221,114170.0,114160.0,0.42167425]
[1757598701232,0.0221,114170.0,114160.0,0.58515606]
[1757598701528,1.78878,114180.0,114170.0,0.03585]
[1757598701719,1.78878,114180.0,114170.0,0.56013181]
[1757598701920,2.61352,114180.0,114170.0,0.81013181]
[1757598702123,1.76668,114180.0,114170.0,0.81013181]
[1757598702323,2.61352,114180.0,114170.0,0.81013181]
[1757598702830,2.61352,114180.0,114170.0,0.87273347]
[1757598703227,2.61352,114180.0,114170.0,0.87473347]
[1757598703428,0.06924428,114190.0,114180.0,0.01375]
[1757598703734,0.91600428,114190.0,114180.0,0.39665]
[1757598703931,0.91600428,114190.0,114180.0,0.56013181]
[1757598704331,0.93810428,114190.0,114180.0,0.39665]
[1757598704929,1.10158609,114190.0,114180.0,0.39665]
[1757598705131,0.93810428,114190.0,114180.0,0.39665]
[1757598705435,1.11555609,114190.0,114180.0,0.3829]
[1757598706434,1.11555609,114190.0,114180.0,0.3849]
[1757598707128,1.10158609,114190.0,114180.0,0.39865]
[1757598707630,1.11555609,114190.0,114180.0,0.39865]
[1757598707832,1.11555609,114190.0,114180.0,0.3849]
[1757598707833,0.95207428,114190.0,114180.0,0.3849]
[1757598708226,1.11555609,114190.0,114180.0,0.3628]
[1757598708432,1.11555609,114190.0,114180.0,0.3849]
[1757598708936,0.95207428,114190.0,114180.0,0.3849]
[1757598709434,1.11555609,114190.0,114180.0,0.3849]
[1757598709638,1.10158609,114190.0,114180.0,0.39865]
[1757598710427,0.93778428,114190.0,114180.0,0.39865]
[1757598710829,0.09134428,114190.0,114180.0,0.39865]
[1757598711127,0.06924428,114190.0,114180.0,0.56213181]
[1757598711334,0.91560428,114190.0,114180.0,0.56213181]
[1757598712437,0.91556428,114190.0,114180.0,0.56213181]
[1757598712838,0.06924428,114190.0,114180.0,0.56213181]
[1757598713137,0.91552428,114190.0,114180.0,0.81213181]
[1757598713332,0.91552428,114190.0,114180.0,0.87473347]
[1757598713532,0.93655428,114190.0,114180.0,0.71125166]
[1757598713733,0.93655428,114190.0,114180.0,0.87473347]
[1757598714038,0.91552428,114190.0,114180.0,0.87473347]
[1757598714726,0.93655428,114190.0,114180.0,0.87473347]
[1757598715133,0.93655428,114190.0,114180.0,0.71125166]
[1757598715336,0.93655428,114190.0,114180.0,0.87473347]
[1757598715739,0.93655428,114190.0,114180.0,0.71125166]
[1757598715937,0.93655428,114190.0,114180.0,0.87473347]
[1757598716634,0.93655428,114190.0,114180.0,0.46125166]
[1757598716635,1.11362609,114190.0,114180.0,0.46125166]
[1757598717537,0.93655428,114190.0,114180.0,0.46125166]
[1757598717733,0.93655428,114190.0,114180.0,0.62473347]
[1757598717941,0.93655428,114190.0,114180.0,0.46125166]
[1757598718735,0.93655428,114190.0,114180.0,0.623293]
[1757598718936,0.06924428,114190.0,114180.0,0.623293]
[1757598719129,0.91528428,114190.0,114180.0,0.623293]
[1757598719738,0.93631428,114190.0,114180.0,0.46125166]
[1757598719947,0.09027428,114190.0,114180.0,0.39865]
[1757598720142,0.06924428,114190.0,114180.0,0.56069134]
[1757598720337,0.91512428,114190.0,114180.0,0.56069134]
[1757598720737,0.93615428,114190.0,114180.0,0.39865]
[1757598720944,0.09027428,114190.0,114180.0,0.56069134]
[1757598721144,0.93611428,114190.0,114180.0,0.56069134]
[1757598721345,0.09027428,114190.0,114180.0,0.56069134]
[1757598721536,0.93611428,114190.0,114180.0,0.56069134]
[1757598721736,0.06924428,114190.0,114180.0,0.56069134]
[1757598722143,0.91504428,114190.0,114180.0,0.63888711]
[1757598722640,0.91504428,114190.0,114180.0,0.47684577]
[1757598722844,0.93607428,114190.0,114180.0,0.63888711]
[1757598723045,0.93607428,114190.0,114180.0,0.47684577]
[1757598723243,0.93607428,114190.0,114180.0,0.63888711]
[1757598724149,0.06924428,114190.0,114180.0,0.63888711]
[1757598724443,4e-05,114190.0,114180.0,0.89825024]
[1757598725945,4e-05,114190.0,114180.0,0.81069134]
[1757598726448,0.02107,114190.0,114180.0,0.47684577]
[1757598726647,0.02107,114190.0,114180.0,0.63888711]
[1757598726842,4e-05,114190.0,114180.0,0.63888711]
[1757598727038,4e-05,114190.0,114180.0,0.89769847]
[1757598727243,4e-05,114190.0,114180.0,0.8195027]
[1757598727438,4e-05,114190.0,114180.0,0.92946662]
[1757598727837,4e-05,114190.0,114180.0,0.8195027]
[1757598728149,4e-05,114190.0,114180.0,0.83980077]
[1757598728446,0.01742376,114220.0,114210.0,0.0366]
[1757598728649,0.01742376,114220.0,114210.0,0.92024134]
[1757598729147,0.01742376,114220.0,114210.0,0.99837373]
[1757598729548,0.01742376,114220.0,114210.0,0.92024134]
[1757598729954,0.01842376,114220.0,114210.0,0.92024134]
[1757598730150,0.01842376,114220.0,114210.0,0.99831792]
[1757598730648,0.01842376,114220.0,114210.0,0.83627658]
[1757598730954,0.01842376,114220.0,114210.0,0.99831792]
[1757598731340,0.03945376,114220.0,114210.0,0.99831792]
[1757598731648,0.01842376,114220.0,114210.0,0.99831792]
[1757598731957,0.01846376,114220.0,114210.0,0.99831792]
[1757598732253,0.03949376,114220.0,114210.0,0.99831792]
[1757598732653,0.01846376,114220.0,114210.0,0.99831792]
[1757598733351,0.01846376,114220.0,114210.0,1.00706792]
[1757598734855,0.01846376,114220.0,114210.0,1.09460382]
[1757598735555,0.01846376,114220.0,114210.0,1.00706792]
[1757598735741,0.01846376,114220.0,114210.0,0.84502658]
[1757598736048,0.01846376,114220.0,114210.0,0.92899134]
[1757598736251,0.01846376,114220.0,114210.0,1.00697326]
[1757598738461,0.03949376,114220.0,114210.0,0.84493192]
[1757598738950,0.03949376,114220.0,114210.0,0.99137806]
[1757598739759,0.43411134,114220.0,114210.0,0.82933672]
[1757598739958,0.27207,114220.0,114210.0,0.76695]
[1757598740250,1.1301,114220.0,114210.0,0.82933672]
[1757598740452,1.29114134,114220.0,114210.0,0.79273672]
[1757598740652,1.29114134,114220.0,114210.0,0.73135]
[1757598740854,1.29114134,114220.0,114210.0,0.75464]